bitfinex-derivatives/quotes_BTCF0:USTF0_20260127
["timestamp","ask_amount","ask_price","bid_price","bid_amount"]
[1769534033949,0.10228,88131.0,88115.0,0.12258838]
[1769534034151,0.10228,88131.0,88116.0,0.12]
[1769534034353,0.0113973,88142.0,88118.0,0.011361]
[1769534034354,0.10228,88141.0,88118.0,0.011361]
[1769534034549,0.10228,88141.0,88127.0,0.01136]
[1769534034855,0.011358,88140.0,88128.0,0.00258838]
[1769534035254,0.10228,88141.0,88128.0,0.00258838]
[1769534035955,0.113638,88141.0,88128.0,0.00258838]
[1769534036342,0.10228,88141.0,88129.0,0.01136]
[1769534036542,0.01364092,88149.0,88130.0,0.00258838]
[1769534036742,0.011357,88148.0,88134.0,0.011359]
[1769534036959,0.011357,88146.0,88135.0,0.00258838]
[1769534037155,0.011357,88146.0,88131.0,0.011359]
[1769534037156,0.01364092,88142.0,88128.0,0.01136]
[1769534037453,0.01364092,88142.0,88131.0,0.00258838]
[1769534038059,0.02499792,88149.0,88134.0,0.011359]
[1769534038256,0.01364092,88149.0,88135.0,0.00258838]
[1769534038460,0.011357,88146.0,88135.0,0.00258838]
[1769534038956,0.02499792,88149.0,88135.0,0.00258838]
[1769534039451,0.01364092,88149.0,88135.0,0.00258838]
[1769534039657,0.01364092,88149.0,88136.0,0.011359]
[1769534039954,0.01729188,88136.0,88107.0,0.11423603]
[1769534040157,0.01737763,88125.0,88111.0,0.011362]
[1769534040357,0.02873763,88125.0,88112.0,0.00258838]
[1769534040559,0.011361,88121.0,88100.0,0.11420745]
[1769534040758,0.10224,88132.0,88103.0,0.011363]
[1769534040759,0.011361,88119.0,88103.0,0.011363]
[1769534041056,0.011361,88119.0,88093.0,0.11420745]
[1769534041057,0.02873863,88117.0,88104.0,0.00258838]
[1769534041245,0.02873863,88115.0,88104.0,0.00258838]
[1769534041447,0.011361,88121.0,88104.0,0.00258838]
[1769534041649,0.01737763,88145.0,88104.0,0.11679583]
[1769534041861,0.011359,88133.0,88112.0,0.11420745]
[1769534042044,0.10224,88132.0,88118.0,0.011361]
[1769534042243,0.10224,88132.0,88119.0,0.00258838]
[1769534042758,0.01136,88130.0,88119.0,0.00258838]
[1769534043057,0.01583842,88129.0,88087.0,0.11472052]
[1769534043260,0.01583842,88114.0,88100.0,0.011363]
[1769534043461,0.00258838,88113.0,88101.0,0.00078304]
[1769534043757,0.00258838,88113.0,88101.0,0.01214604]
[1769534044057,0.00258838,88113.0,88103.0,0.011363]
[1769534044257,0.02461104,88122.0,88106.0,0.011362]
[1769534044258,0.10224,88121.0,88106.0,0.011362]
[1769534044458,0.00258838,88112.0,88107.0,0.00078304]
[1769534044657,0.10224,88121.0,88108.0,0.00078304]
[1769534044859,0.00258838,88120.0,88105.0,0.011363]
[1769534045060,0.00258838,88120.0,88106.0,0.00078304]
[1769534045563,0.01687917,88120.0,88099.0,0.10224]
[1769534045753,0.01687917,88120.0,88101.0,0.011363]
[1769534045955,0.01429079,88108.0,88084.0,0.1152364]
[1769534046154,0.00258838,88107.0,88089.0,0.00078304]
[1769534046355,0.00258838,88107.0,88089.0,0.11620333]
[1769534046552,0.00258838,88107.0,88091.0,0.11542029]
[1769534046753,0.00258838,88107.0,88101.0,0.011363]
[1769534046959,0.01373912,88115.0,88102.0,0.00078304]
[1769534047261,0.0163275,88115.0,88103.0,0.011363]
[1769534047661,0.10228,88120.0,88106.0,0.011362]
[1769534047862,0.00258838,88115.0,88107.0,0.00078304]
[1769534048162,0.01373912,88123.0,88108.0,0.011362]
[1769534048352,0.0276875,88123.0,88109.0,0.00078304]
[1769534048553,0.0276875,88123.0,88110.0,0.011362]
[1769534048759,0.0276875,88123.0,88111.0,0.00078304]
[1769534049156,0.011361,88120.0,88104.0,0.011363]
[1769534049366,0.01336528,88119.0,88106.0,0.011362]
[1769534049660,0.011359,88131.0,88098.0,0.10228]
[1769534049661,0.10081944,88144.0,88128.0,0.01136]
[1769534049850,0.00258838,88140.0,88131.0,0.011359]
[1769534050054,0.00258838,88140.0,88132.0,0.00078304]
[1769534050258,0.00258838,88140.0,88133.0,0.011359]
[1769534050667,0.011358,88144.0,88134.0,0.00078304]
[1769534050964,0.10228,88146.0,88135.0,0.00078304]
[1769534051360,0.00258838,88145.0,88135.0,0.00078304]
[1769534051653,0.10228,88146.0,88139.0,0.011358]
[1769534051859,0.10228,88146.0,88140.0,0.00078304]
[1769534052054,0.00258838,88145.0,88134.0,0.011359]
[1769534052261,0.00258838,88145.0,88135.0,0.00078304]
[1769534052565,0.10228,88146.0,88135.0,0.00078304]
[1769534052760,0.10486838,88146.0,88135.0,0.00078304]
[1769534052958,0.10228,88146.0,88137.0,0.011358]
[1769534053267,0.10228,88146.0,88138.0,0.00078304]
[1769534053956,0.10228,88146.0,88138.0,0.01214104]
[1769534054161,0.113596,88154.0,88140.0,0.011358]
[1769534054357,0.00258838,88153.0,88141.0,0.00078304]
[1769534056061,0.10224,88154.0,88141.0,0.00078304]
[1769534056250,0.10224,88154.0,88144.0,0.011358]
[1769534056448,0.113596,88154.0,88145.0,0.00078304]
[1769534056665,0.00377509,88130.0,88114.0,0.011361]
[1769534056961,0.01513509,88126.0,88108.0,0.10224]
[1769534057150,0.011361,88120.0,88108.0,0.10224]
[1769534057350,0.00258838,88119.0,88104.0,0.011363]
[1769534057665,0.011361,88120.0,88104.0,0.011363]
[1769534057666,0.10224,88127.0,88104.0,0.11874163]
[1769534057959,0.10482838,88127.0,88115.0,0.011361]
[1769534059260,0.00258838,88127.0,88117.0,0.011361]
[1769534059561,0.10224,88135.0,88117.0,0.011361]
[1769534059761,0.10224,88135.0,88115.0,0.10224]
[1769534059961,0.00258838,88134.0,88115.0,0.22224]
[1769534060163,0.00258838,88134.0,88120.0,0.011361]
[1769534060466,0.00258838,88134.0,88115.0,0.10224]
[1769534060661,0.01136,88126.0,88114.0,0.10224]
[1769534060864,0.011361,88122.0,88114.0,0.10224]
[1769534061056,0.00258838,88121.0,88114.0,0.10224]
[1769534061462,0.01394938,88121.0,88109.0,0.10224]
[1769534061670,0.00258838,88121.0,88109.0,0.10224]
[1769534062263,0.14683509,88120.0,88092.0,0.10224]
[1769534062465,0.011362,88111.0,88092.0,0.10224]
[1769534062658,0.00258838,88110.0,88095.0,0.011364]
[1769534063356,0.00258838,88110.0,88092.0,0.10224]
[1769534064061,0.011361,88120.0,88100.0,0.011363]
[1769534064360,0.00258838,88119.0,88100.0,0.011363]
[1769534064560,0.00258838,88119.0,88102.0,0.011363]
[1769534064762,0.011361,88118.0,88096.0,0.12]
[1769534064971,0.00258838,88117.0,88096.0,0.12]
[1769534065170,0.011361,88115.0,88093.0,0.011364]
[1769534065464,0.011362,88109.0,88093.0,0.10224]
[1769534065654,0.00258838,88108.0,88093.0,0.10224]
[1769534066963,0.00258838,88108.0,88093.0,0.113604]
[1769534067474,0.011361,88120.0,88101.0,0.011363]
[1769534067766,0.00258838,88119.0,88093.0,0.12]
[1769534068169,0.01394938,88119.0,88095.0,0.12]
[1769534068468,0.00258838,88119.0,88103.0,0.12]
[1769534068971,0.08079501,88120.0,88108.0,0.12]
[1769534069167,0.10224,88130.0,88108.0,0.12]
[1769534069355,0.01136,88127.0,88108.0,0.12]
[1769534069677,0.01136,88125.0,88108.0,0.12]
[1769534069965,0.011361,88117.0,88093.0,0.10959882]
[1769534070168,0.00258838,88116.0,88097.0,0.10959882]
[1769534070365,0.00258838,88116.0,88101.0,0.011363]
[1769534070961,0.00258838,88116.0,88098.0,0.10959882]
[1769534071163,0.00258838,88116.0,88094.0,0.10228]
[1769534071164,0.07035413,88116.0,88094.0,0.10228]
[1769534072059,0.07035413,88116.0,88088.0,0.10959882]
[1769534072060,0.011362,88107.0,88088.0,0.10959882]
[1769534072367,0.011363,88105.0,88089.0,0.10228]
[1769534072663,0.011363,88105.0,88086.0,0.01135248]
[1769534072664,0.011364,88097.0,88086.0,0.01135248]
[1769534072870,0.06937776,88110.0,88067.0,0.45063578]
[1769534072871,0.06937776,88086.0,88067.0,0.45063578]
[1769534073168,0.011367,88071.0,88053.0,9.243e-05]
[1769534073374,0.06937776,88060.0,88043.0,0.67595367]
[1769534073675,0.17665918,88053.0,88033.0,1e-08]
[1769534073964,0.30186838,88059.0,88004.0,0.11005863]
[1769534073965,0.02982409,88040.0,88004.0,0.11005863]
[1769534074168,0.011373,88026.0,88004.0,0.21233863]
[1769534074358,0.00268081,88025.0,88000.0,0.0359669]
[1769534074563,0.011374,88021.0,88000.0,0.0359669]
[1769534074870,0.03327591,88025.0,88000.0,0.0359669]
[1769534074871,9.243e-05,88025.0,88000.0,0.0359669]
[1769534075075,0.29928,88034.0,88000.0,0.0359669]
[1769534075076,0.0305951,88059.0,88015.0,0.10980163]
[1769534075370,0.00258838,88058.0,88035.0,0.10980163]
[1769534075667,0.011369,88054.0,88027.0,0.011373]
[1769534075884,0.01137,88048.0,88028.0,0.10228]
[1769534076070,0.1328751,88057.0,88026.0,0.22345463]
[1769534076071,0.00258838,88047.0,88026.0,0.22345463]
[1769534076271,0.00258838,88047.0,88029.0,0.011372]
[1769534076573,0.00258838,88047.0,88032.0,0.1130694]
[1769534077166,0.10228,88052.0,88033.0,0.011372]
[1769534077369,0.10486838,88052.0,88033.0,0.1130694]
[1769534077761,0.01137,88049.0,88033.0,0.1130694]
[1769534077970,0.00258838,88052.0,88027.0,0.10228]
[1769534077971,0.01395838,88048.0,88027.0,0.10228]
[1769534078159,0.01395838,88048.0,88024.0,0.1130694]
[1769534078365,0.00258838,88048.0,88025.0,0.10228]
[1769534078568,0.011371,88044.0,88024.0,0.1130694]
[1769534078765,0.03045813,88050.0,88026.0,0.011373]
[1769534078766,0.00258838,88043.0,88026.0,0.011373]
[1769534078968,0.00258838,88043.0,88021.0,0.10228]
[1769534079364,0.011371,88040.0,88019.0,0.10228]
[1769534079566,0.00258838,88039.0,88020.0,0.011374]
[1769534079760,0.00258838,88039.0,88019.0,0.10228]
[1769534079972,0.00258838,88039.0,88016.0,0.10232]
[1769534080367,0.00258838,88039.0,88014.0,0.011374]
[1769534080672,0.00258838,88039.0,88016.0,0.011374]
[1769534081267,0.011372,88034.0,88015.0,0.10232]
[1769534081470,0.03496092,88033.0,88004.0,0.011376]
[1769534081666,0.011372,88030.0,88007.0,0.12097382]
[1769534081867,0.011373,88027.0,88007.0,0.10959882]
[1769534082070,0.011373,88022.0,88007.0,0.10959882]
[1769534082278,0.011373,88022.0,88001.0,0.011376]
[1769534082279,0.00258838,88021.0,88000.0,0.1382869]
[1769534082778,0.00258838,88021.0,88000.0,0.0359669]
[1769534083073,0.03292785,88021.0,88000.0,0.0359669]
[1769534083270,0.00258838,88021.0,88000.0,0.0359669]
[1769534083471,0.00258838,88021.0,88002.0,0.011376]
[1769534084075,0.113693,88029.0,88002.0,0.12163376]
[1769534084262,0.00258838,88028.0,88005.0,0.011376]
[1769534084469,0.00258838,88028.0,88002.0,0.11025776]
[1769534084470,0.11621118,88028.0,88014.0,0.11025776]
[1769534084666,0.02922669,88049.0,88014.0,0.11025776]
[1769534084878,0.056772,88172.0,88033.0,0.11025776]
[1769534084879,0.10232,88052.0,88033.0,0.11025776]
[1769534085071,0.10232,88053.0,88038.0,0.12162876]
[1769534085375,0.011,88067.0,88044.0,0.10959882]
[1769534085567,0.011368,88065.0,88044.0,0.21191882]
[1769534085769,0.011,88067.0,88044.0,0.21191882]
[1769534085770,0.011368,88062.0,88044.0,0.21191882]
[1769534085968,0.011369,88055.0,88035.0,0.10959882]
[1769534086280,0.01137,88049.0,88026.0,0.12097182]
[1769534086465,0.01137,88047.0,88026.0,0.22329182]
[1769534086661,0.00258838,88047.0,88032.0,0.011372]
[1769534086877,0.10232,88049.0,88028.0,0.10959882]
[1769534086878,0.10232,88049.0,88028.0,0.12097182]
[1769534087173,0.10232,88049.0,88032.0,0.10959882]
[1769534087381,0.011369,88054.0,88034.0,0.10959882]
[1769534087675,0.011369,88054.0,88026.0,0.10232]
[1769534087676,0.10232,88053.0,88036.0,0.10959882]
[1769534087878,0.10232,88053.0,88026.0,0.10232]
[1769534087879,0.011371,88045.0,88026.0,0.10232]
[1769534088068,0.00258838,88044.0,88026.0,0.10232]
[1769534088269,0.12844519,88043.0,88015.0,0.21191882]
[1769534088478,0.12844519,88043.0,88019.0,0.10959882]
[1769534088479,0.00258838,88042.0,88019.0,0.10959882]
[1769534088973,0.10490838,88042.0,88019.0,0.10959882]
[1769534089177,0.011371,88041.0,88022.0,0.10959882]
[1769534089377,0.011371,88039.0,88022.0,0.10959882]
[1769534089677,0.10232,88042.0,88015.0,0.10232]
[1769534089678,0.00258838,88038.0,88019.0,0.011374]
[1769534089875,0.01395938,88038.0,88019.0,0.011374]
[1769534090275,0.011372,88035.0,88016.0,0.10959882]
[1769534090577,0.10232,88042.0,88018.0,0.12097282]
[1769534090578,0.00258838,88034.0,88018.0,0.12097282]
[1769534090977,0.11707419,88064.0,88018.0,0.10959882]
[1769534091183,0.10490838,88063.0,88042.0,0.10959882]
[1769534091481,0.10490838,88063.0,88044.0,0.011371]
[1769534091773,0.10490838,88063.0,88042.0,0.10959882]
[1769534091978,0.10490838,88063.0,88046.0,0.01137]
[1769534092365,0.011368,88062.0,88042.0,0.10959882]
[1769534092572,0.01137,88051.0,88041.0,0.10232]
[1769534092766,0.01395838,88050.0,88041.0,0.10232]
[1769534092971,0.01395838,88050.0,88035.0,0.10232]
[1769534092972,0.00258838,88050.0,88035.0,0.10232]
[1769534093877,0.00258838,88050.0,88036.0,0.12096982]
[1769534094076,0.011,88067.0,88044.0,0.10959882]
[1769534094379,0.01358838,88067.0,88048.0,0.01137]
[1769534094582,0.10232,88074.0,88063.0,0.11936298]
[1769534094780,0.011366,88077.0,88063.0,0.11936298]
[1769534094974,0.00258838,88076.0,88063.0,0.11936298]
[1769534095376,0.011367,88075.0,88063.0,0.11936298]
[1769534095577,0.00258838,88074.0,88049.0,0.11936298]
[1769534095778,0.00258838,88074.0,88053.0,0.11936298]
[1769534096372,0.01395538,88074.0,88055.0,0.11936298]
[1769534096673,0.00258838,88074.0,88048.0,0.4018]
[1769534097381,0.10232,88081.0,88051.0,0.11936298]
[1769534097680,0.00258838,88081.0,88064.0,0.11936298]
[1769534097876,0.00258838,88081.0,88065.0,0.13073098]
[1769534098071,0.00258838,88081.0,88068.0,0.011367]
[1769534098269,0.00258838,88081.0,88066.0,0.011368]
[1769534098474,0.00258838,88081.0,88065.0,0.11936298]
[1769534098879,0.00258838,88081.0,88067.0,0.011367]
[1769534099382,0.10232,88084.0,88065.0,0.11936298]
[1769534099578,0.10232,88084.0,88048.0,0.29948]
[1769534099579,0.011366,88077.0,88062.0,0.10232]
[1769534099779,0.00258838,88076.0,88062.0,0.10232]
[1769534099986,0.011367,88075.0,88062.0,0.10232]
[1769534100176,0.00258838,88074.0,88062.0,0.10232]
[1769534100375,0.011367,88073.0,88062.0,0.10232]
[1769534100691,0.011367,88073.0,88035.0,0.40936]
[1769534100692,0.011369,88058.0,88039.0,0.011371]
[1769534100986,0.011369,88058.0,88019.0,0.011374]
[1769534100987,0.00258838,88057.0,88041.0,0.11936298]
[1769534101184,0.00258838,88057.0,88043.0,0.011371]
[1769534101690,0.01137,88049.0,88030.0,0.011372]
[1769534101870,0.00258838,88048.0,88030.0,0.10232]
[1769534102074,0.01137,88047.0,88030.0,0.23305498]
[1769534102289,0.00258838,88046.0,88030.0,0.23305498]
[1769534102585,0.00258838,88046.0,88030.0,0.22168298]
[1769534102977,0.00258838,88046.0,88034.0,0.011372]
[1769534103196,0.011369,88057.0,88031.0,0.11936298]
[1769534103480,0.011368,88064.0,88045.0,0.13073298]
[1769534103790,0.11416136,88065.0,88042.0,0.10232]
[1769534103990,0.011369,88059.0,88042.0,0.10490838]
[1769534104379,0.011368,88065.0,88047.0,0.13073298]
[1769534104588,0.113688,88066.0,88049.0,0.11936298]
[1769534104778,0.10232,88066.0,88052.0,0.011369]
[1769534104978,0.10232,88066.0,88053.0,0.00258838]
[1769534105390,0.10232,88071.0,88054.0,0.13073198]
[1769534105588,0.011367,88076.0,88059.0,0.11936298]
[1769534105778,0.21587958,88080.0,88060.0,0.00258838]
[1769534105979,0.31780632,88106.0,88060.0,0.00258838]
[1769534105980,0.10232,88095.0,88066.0,0.11936298]
[1769534106186,0.10232,88095.0,88064.0,0.10232]
[1769534106187,0.011367,88075.0,88064.0,0.10232]
[1769534106584,0.011368,88068.0,88052.0,0.11936298]
[1769534106784,0.011367,88075.0,88053.0,0.10490838]
[1769534107088,0.21586668,88080.0,88062.0,0.13073098]
[1769534107274,0.113686,88080.0,88062.0,0.00258838]
[1769534107475,0.10232,88080.0,88065.0,0.011368]
[1769534107674,0.10232,88080.0,88066.0,0.00258838]
[1769534107874,0.11416136,88092.0,88066.0,0.00258838]
[1769534108084,0.011365,88085.0,88066.0,0.00258838]
[1769534108379,0.11416136,88077.0,88047.0,0.10232]
[1769534108581,0.011368,88066.0,88050.0,0.0008632]
[1769534108787,0.002588,88065.0,88050.0,0.0008632]
[1769534108987,0.013956,88065.0,88050.0,0.0008632]
[1769534109294,0.011368,88060.0,88047.0,0.10232]
[1769534109493,0.11416136,88064.0,88036.0,0.11936298]
[1769534109494,0.011369,88055.0,88036.0,0.11936298]
[1769534109783,0.002588,88054.0,88039.0,0.0008632]
[1769534110384,0.011369,88053.0,88039.0,0.0008632]
[1769534110684,0.01137,88051.0,88033.0,0.10459189]
[1769534110881,0.002588,88050.0,88033.0,0.10459189]
[1769534111081,0.01137,88049.0,88033.0,0.10545509]
[1769534111279,0.002588,88048.0,88033.0,0.00227189]
[1769534111483,0.01137,88047.0,88033.0,0.00227189]
[1769534111683,0.002588,88046.0,88033.0,0.00313509]
[1769534112584,0.11674936,88046.0,88033.0,0.00072746]
[1769534112788,0.11416136,88043.0,88024.0,0.10232]
[1769534112993,0.002588,88042.0,88024.0,0.10232]
[1769534113196,0.011371,88039.0,88024.0,0.1031832]
[1769534113407,0.011372,88034.0,88012.0,0.011375]
[1769534113588,0.002588,88033.0,88013.0,0.0008632]
[1769534113780,0.011372,88032.0,88013.0,0.0008632]
[1769534113984,0.002588,88031.0,88013.0,0.0008632]
[1769534114493,0.011373,88023.0,88003.0,0.011376]
[1769534114791,0.002588,88022.0,88007.0,0.0008632]
[1769534115294,0.11416136,88020.0,88007.0,0.0008632]
[1769534115488,0.11416136,88011.0,87992.0,0.011377]
[1769534115693,0.00258838,88010.0,87992.0,0.011377]
[1769534115895,0.12553636,88008.0,87981.0,0.011379]
[1769534116091,0.00258838,88007.0,87984.0,0.011378]
[1769534116396,0.11416136,88005.0,87970.0,0.11936298]
[1769534116585,0.11416136,87997.0,87971.0,0.01138]
[1769534116788,0.00258838,87996.0,87971.0,0.01138]
[1769534117089,0.10232,88006.0,87966.0,0.01136796]
[1769534117090,0.00258838,87995.0,87974.0,0.11936298]
[1769534117289,0.00258838,87995.0,87979.0,0.011379]
[1769534117489,0.00258838,87995.0,87967.0,0.13074298]
[1769534117684,0.11674974,87995.0,87970.0,0.01138]
[1769534117989,0.11674974,87995.0,87971.0,0.10236]
[1769534118186,0.011377,87993.0,87971.0,0.10236]
[1769534118383,0.11674974,87995.0,87971.0,0.10236]
[1769534118384,0.011378,87990.0,87971.0,0.10236]
[1769534118585,0.011378,87988.0,87966.0,0.01136796]
[1769534118882,0.011378,87988.0,87937.0,0.011384]
[1769534118883,0.11416136,87957.0,87926.0,0.14212212]
[1769534119093,0.00258838,87956.0,87927.0,0.40188]
[1769534119292,0.12554336,87953.0,87928.0,0.29952]
[1769534119492,0.11416136,87948.0,87926.0,0.01137314]
[1769534119792,0.11416136,87946.0,87913.0,0.00796246]
[1769534120094,0.011384,87943.0,87914.0,0.40188]
[1769534120398,0.011384,87941.0,87916.0,0.11936298]
[1769534120590,0.00258838,87940.0,87916.0,0.11936298]
[1769534120988,8.545e-05,87942.0,87916.0,0.11936298]
[1769534121204,0.10236,87968.0,87916.0,0.13074998]
[1769534121496,0.11372876,87965.0,87927.0,0.11936298]
[1769534121686,0.011382,87954.0,87929.0,0.11936298]
[1769534121887,0.11416136,87920.0,87906.0,1.8e-07]
[1769534122187,0.12555436,87867.0,87866.0,9e-07]
[1769534122495,0.10821168,87856.0,87835.0,0.0547605]
[1769534122687,0.00258838,87855.0,87830.0,0.10908297]
[1769534122883,0.011388,87906.0,87834.0,0.10908226]
[1769534123085,0.10326262,87894.0,87846.0,0.011396]
[1769534123296,0.00011127,87893.0,87847.0,0.40462838]
[1769534123599,0.00086262,87892.0,87848.0,0.40204]
[1769534123894,0.00086262,87892.0,87849.0,0.00258838]
[1769534124192,0.011393,87872.0,87849.0,0.11639286]
[1769534124396,0.00086262,87871.0,87849.0,0.00258838]
[1769534124600,0.011391,87885.0,87849.0,0.00258838]
[1769534124889,0.011392,87880.0,87850.0,0.40208]
[1769534125087,0.00013555,87884.0,87856.0,0.011395]
[1769534125284,0.00086262,87883.0,87857.0,0.81442838]
[1769534125489,0.01225362,87883.0,87857.0,0.00258838]
[1769534125694,0.00086262,87883.0,87858.0,0.81184]
[1769534125993,0.00086262,87883.0,87859.0,0.00258838]
[1769534126195,0.011392,87876.0,87860.0,0.4022]
[1769534126495,0.00086262,87875.0,87861.0,0.00258838]
[1769534126698,0.11380448,87901.0,87862.0,0.40478838]
[1769534126901,0.011392,87876.0,87862.0,0.00258838]
[1769534127200,0.011391,87884.0,87862.0,0.00258838]
[1769534127395,0.01225362,87884.0,87863.0,0.40224]
[1769534127589,0.01139,87893.0,87864.0,0.40482838]
[1769534127789,0.00086262,87892.0,87865.0,0.10244]
[1769534127993,0.00086262,87892.0,87866.0,0.00258838]
[1769534128389,0.011,87907.0,87880.0,0.011392]
[1769534128699,0.00086262,87906.0,87881.0,0.40482838]
[1769534128895,0.01225062,87906.0,87882.0,0.10244]
[1769534129098,0.00086262,87906.0,87883.0,0.00258838]
[1769534129297,0.011389,87905.0,87883.0,0.00258838]
[1769534129494,0.00086262,87904.0,87883.0,0.00258838]
[1769534129696,0.011,87907.0,87883.0,0.00258838]
[1769534130000,0.00086262,87906.0,87886.0,0.011391]
[1769534130191,0.011,87907.0,87887.0,0.00258838]
[1769534130397,1e-08,87907.0,87893.0,0.01139]
[1769534130594,1e-08,87907.0,87895.0,0.01139]
[1769534130796,1e-08,87907.0,87897.0,0.01139]
[1769534131000,1e-08,87907.0,87898.0,0.00258838]
[1769534131188,1e-08,87907.0,87899.0,0.40232]
[1769534131391,1e-08,87907.0,87900.0,0.00258838]
[1769534132004,1e-08,87907.0,87901.0,0.29988]
[1769534132303,1e-08,87907.0,87906.0,0.00258838]
[1769534132707,0.011,87927.0,87906.0,0.00258838]
[1769534133003,0.011386,87924.0,87906.0,0.00258838]
[1769534133205,0.011,87927.0,87906.0,0.00258838]
[1769534133408,0.011,87927.0,87878.0,0.011392]
[1769534133409,0.12086262,87924.0,87888.0,0.011391]
[1769534133607,0.00086262,87924.0,87896.0,0.01139]
[1769534133807,0.011387,87920.0,87897.0,0.10248]
[1769534133998,0.00258838,87920.0,87897.0,0.10248]
[1769534134195,0.011,87927.0,87901.0,0.011389]
[1769534134500,0.011386,87926.0,87903.0,0.011389]
[1769534134808,0.00258838,87925.0,87904.0,0.29988]
[1769534135394,0.011386,87924.0,87904.0,0.29988]
[1769534135602,0.01397438,87925.0,87904.0,0.29988]
[1769534135923,0.01397438,87925.0,87903.0,0.011389]
[1769534135924,0.011387,87917.0,87891.0,0.01139]
[1769534136118,0.00258838,87924.0,87892.0,0.10090472]
[1769534136119,0.12258838,87916.0,87892.0,0.10090472]
[1769534136401,0.011389,87902.0,87892.0,0.10248]
[1769534136603,0.01139,87895.0,87893.0,0.10248]
[1769534136797,0.00258838,87894.0,87870.0,0.011393]
[1769534137101,0.00258838,87894.0,87871.0,0.40236]
[1769534137303,0.011388,87913.0,87872.0,0.10248]
[1769534137503,0.01139,87893.0,87846.0,0.01138349]
[1769534137698,0.12258838,87892.0,87850.0,0.011396]
[1769534137901,0.011392,87879.0,87856.0,0.413795]
[1769534138097,0.00258838,87878.0,87856.0,0.413795]
[1769534138409,0.00258838,87878.0,87856.0,0.4024]
[1769534138607,0.01139,87896.0,87856.0,0.4024]
[1769534138902,0.00258838,87895.0,87881.0,0.011392]
[1769534139108,0.00258838,87895.0,87882.0,0.4024]
[1769534139305,0.011389,87900.0,87882.0,0.4024]
[1769534139513,0.00258838,87899.0,87882.0,0.4024]
[1769534140099,0.011388,87909.0,87882.0,0.4024]
[1769534140400,0.00258838,87908.0,87887.0,0.011391]
[1769534141401,0.12,87920.0,87882.0,0.4024]
[1769534141402,0.011387,87917.0,87893.0,0.01139]
[1769534141600,0.00258838,87916.0,87893.0,0.01139]
[1769534141802,0.00258838,87916.0,87900.0,0.011389]
[1769534141998,0.011,87927.0,87901.0,0.40244]
[1769534142203,0.01186262,87927.0,87913.0,0.011387]
[1769534142411,0.12,87941.0,87919.0,0.011387]
[1769534142706,0.11462179,87940.0,87920.0,0.40502838]
[1769534142916,0.11462179,87940.0,87921.0,0.40244]
[1769534143113,0.011384,87939.0,87922.0,0.00258838]
[1769534143308,0.011384,87936.0,87922.0,0.00258838]
[1769534143811,0.011384,87940.0,87922.0,0.00258838]
[1769534144113,0.011384,87943.0,87922.0,0.00258838]
[1769534144413,0.011382,87958.0,87923.0,0.29996]
[1769534144414,0.11372812,87946.0,87923.0,0.29996]
[1769534144606,0.12,87940.0,87924.0,0.28502838]
[1769534144805,0.011384,87939.0,87925.0,0.40244]
[1769534145009,0.10823684,87938.0,87918.0,0.00258838]
[1769534145207,0.011385,87933.0,87919.0,0.40244]
[1769534145411,0.11962084,87937.0,87920.0,0.00258838]
[1769534145713,0.011385,87933.0,87920.0,0.00258838]
[1769534145916,0.11962084,87937.0,87920.0,0.00258838]
[1769534146208,0.011384,87943.0,87921.0,0.011386]
[1769534146408,0.11923684,87947.0,87922.0,0.00258838]
[1769534146616,0.11372876,87946.0,87922.0,0.00258838]
[1769534146815,0.10823684,87946.0,87922.0,0.00258838]
[1769534147111,0.011384,87942.0,87922.0,0.00258838]
[1769534147319,0.011384,87943.0,87923.0,0.011386]
[1769534147611,0.011385,87936.0,87924.0,0.4024]
[1769534147817,0.002588,87935.0,87924.0,0.4032632]
[1769534148019,0.10823684,87942.0,87924.0,0.4032632]
[1769534148211,0.002588,87935.0,87924.0,0.4032632]
[1769534148810,0.002588,87935.0,87924.0,0.4024]
[1769534149011,0.011384,87943.0,87924.0,0.4032632]
[1769534149206,0.011384,87939.0,87924.0,0.4032632]
[1769534149419,0.013972,87938.0,87924.0,0.4032632]
[1769534149617,0.002588,87938.0,87924.0,0.4032632]
[1769534150420,0.011384,87944.0,87924.0,0.4032632]
[1769534150616,0.002588,87943.0,87924.0,0.4032632]
[1769534150818,0.002588,87943.0,87925.0,0.29992]
[1769534151025,0.002588,87943.0,87926.0,0.1033432]
[1769534151323,0.11392173,87953.0,87936.0,0.011384]
[1769534151324,0.00568489,87953.0,87936.0,0.011384]
[1769534151521,0.002588,87952.0,87937.0,0.3007832]
[1769534152322,0.00568489,87953.0,87940.0,0.011384]
[1769534152524,0.011382,87959.0,87941.0,0.1033432]
[1769534152711,0.011382,87957.0,87941.0,0.1033432]
[1769534152911,0.002588,87956.0,87941.0,0.0008632]
[1769534153508,0.002588,87956.0,87942.0,0.4024]
[1769534153716,0.10248,87974.0,87944.0,0.09606117]
[1769534154022,0.011381,87964.0,87946.0,0.011383]
[1769534154211,0.002588,87963.0,87947.0,0.3007832]
[1769534154413,0.002588,87963.0,87948.0,0.4024]
[1769534154622,0.011,87967.0,87949.0,0.09733582]
[1769534154819,0.011,87967.0,87953.0,0.011382]
[1769534155124,0.011,87967.0,87954.0,0.0008632]
[1769534156428,0.011381,87966.0,87954.0,0.0008632]
[1769534156613,0.002588,87965.0,87954.0,0.0008632]
[1769534157119,0.011,87967.0,87954.0,0.0008632]
[1769534157329,0.011378,87984.0,87963.0,0.011381]
[1769534157516,0.173111,87983.0,87968.0,0.01138]
[1769534157721,0.173111,87983.0,87964.0,0.4032232]
[1769534157722,0.002588,87982.0,87969.0,0.0008632]
[1769534158111,0.002588,87982.0,87970.0,0.29988]
[1769534158317,0.002588,87982.0,87971.0,0.0008632]
[1769534158623,0.011,87987.0,87971.0,0.0008632]
[1769534158825,0.17050982,87986.0,87970.0,0.40891573]
[1769534159022,0.11990495,87985.0,87952.0,0.09665841]
[1769534159223,0.11990495,87985.0,87957.0,0.011382]
[1769534159424,0.011379,87980.0,87959.0,0.011381]
[1769534159726,0.011379,87980.0,87954.0,0.09665841]
[1769534159727,0.011379,87977.0,87956.0,0.011382]
[1769534159929,0.01138,87970.0,87940.0,0.011384]
[1769534160229,0.01138,87970.0,87920.0,0.011386]
[1769534160230,0.00258838,87969.0,87942.0,0.09674874]